bitfinex/quotes_SOLUSD_20250704
["timestamp","ask_amount","ask_price","bid_price","bid_amount"]
[1751630907757,11.60394292,150.31,150.28,6.38569659]
[1751630908158,4.95099157,150.31,150.3,6.38569659]
[1751630908354,6.65233666,150.33,150.3,6.38569659]
[1751630909260,4.95099157,150.34,150.28,6.65413413]
[1751630909261,4.95099157,150.34,150.32,6.38569659]
[1751630909482,11.60230636,150.35,150.32,6.38569659]
[1751630910055,4.95099157,150.35,150.32,6.38569659]
[1751630910375,4.95099157,150.35,150.33,6.38569659]
[1751630910579,6.38569659,150.37,150.33,6.38569659]
[1751630910755,11.33249383,150.37,150.33,6.38569659]
[1751630911356,6.65097846,150.36,150.33,6.38569659]
[1751630912569,6.65097846,150.36,150.32,6.38569659]
[1751630912794,13.03667505,150.36,150.32,6.38569659]
[1751630912963,6.65097846,150.36,150.32,6.38569659]
[1751630913161,51.03534545,150.35,150.31,1.5108]
[1751630913466,6.38569659,150.33,150.31,1.5108]
[1751630913674,6.38569659,150.33,150.29,12.60969659]
[1751630914094,44.64964886,150.35,150.29,12.60969659]
[1751630914382,6.38569659,150.33,150.29,12.60969659]
[1751630917789,6.65247472,150.32,150.29,12.60969659]
[1751630919184,6.65158972,150.34,150.31,6.38569659]
[1751630919478,13.03728631,150.34,150.3,6.38569659]
[1751630920069,32.65131911,150.35,150.3,13.03902692]
[1751630920266,6.38569659,150.34,150.3,13.03902692]
[1751630921873,39.0370157,150.35,150.31,6.38569659]
[1751630923479,39.0370157,150.35,150.3,6.38569659]
[1751630924580,6.65200615,150.34,150.3,6.38569659]
[1751630924788,13.03770274,150.34,150.3,6.38569659]
[1751630927987,13.03806002,150.33,150.29,12.60969659]
[1751630928288,13.03806002,150.33,150.29,6.38569659]
[1751630931191,13.03806002,150.33,150.27,8.26972254]
[1751630931394,13.03806002,150.33,150.29,6.38569659]
[1751630933292,13.03806002,150.33,150.27,8.26972254]
[1751630933591,13.03806002,150.33,150.28,6.38569659]
[1751630933766,13.03806002,150.33,150.29,6.38569659]
[1751630934170,6.65236343,150.33,150.29,6.38569659]
[1751630934469,6.65236343,150.33,150.3,6.38569659]
[1751630935085,6.65236343,150.33,150.29,13.03945801]
[1751630935897,6.65236343,150.33,150.29,4.08309034]
[1751630936474,6.65236343,150.33,150.3,4.08309034]
[1751630936894,29.38432892,150.34,150.3,4.08309034]
[1751630938081,29.38432892,150.34,150.3,10.73643606]
[1751630938699,29.38432892,150.34,150.3,4.08309034]
[1751630939881,36.73431616,150.35,150.31,4.08309034]
[1751630940078,32.65122582,150.35,150.31,4.08309034]
[1751630940305,32.65122582,150.35,150.32,4.08309034]
[1751630940306,26.0,150.35,150.32,4.08309034]
[1751630940478,32.65140227,150.35,150.32,4.08309034]
[1751630940898,32.65140227,150.35,150.31,4.08309034]
[1751630941604,9.0217597,150.34,150.29,6.65353093]
[1751630941788,4.08309034,150.34,150.29,10.73662127]
[1751630942610,10.73497174,150.34,150.29,10.73662127]
[1751630943493,15.67655147,150.34,150.29,10.73662127]
[1751630943802,17.97305215,150.34,150.29,13.03312195]
[1751630945084,17.97305215,150.34,150.29,6.37959102]
[1751630946503,17.97305215,150.34,150.29,13.03335042]
[1751630948112,17.97305215,150.34,150.29,6.37959102]
[1751630949416,17.97305215,150.34,150.29,13.03333804]
[1751630949711,4.94157973,150.33,150.3,6.37959102]
[1751630949900,17.97305215,150.34,150.3,6.37959102]
[1751630950206,11.59346113,150.34,150.3,6.37959102]
[1751630950511,4.94157973,150.33,150.3,6.37959102]
[1751630951989,4.94157973,150.33,150.31,6.37959102]
[1751630952209,4.94157973,150.34,150.31,6.37959102]
[1751630952401,4.94157973,150.33,150.3,13.03284714]
[1751630952594,4.94157973,150.34,150.3,13.03284714]
[1751630952794,4.94157973,150.34,150.3,6.37959102]
[1751630952795,4.94157973,150.33,150.3,6.37959102]
[1751630953011,4.94157973,150.32,150.28,6.65407706]
[1751630953192,4.94157973,150.31,150.28,6.37959102]
[1751630953393,6.37959102,150.31,150.26,6.37959102]
[1751630953691,11.59414101,150.32,150.25,13.25959102]
[1751630953692,11.32117075,150.3,150.25,13.25959102]
[1751630953900,4.94157973,150.29,150.26,6.37959102]
[1751630954613,4.94157973,150.29,150.25,6.88]
[1751630954614,4.94157973,150.29,150.27,6.37959102]
[1751630954798,163.02939491,150.34,150.28,6.37959102]
[1751630954799,4.94157973,150.3,150.28,6.37959102]
[1751630954997,11.59451818,150.31,150.28,6.37959102]
[1751630955189,4.94157973,150.3,150.28,6.37959102]
[1751630957210,11.59451818,150.31,150.28,6.37959102]
[1751630957851,11.59451818,150.31,150.26,6.6551311]
[1751630957991,11.59451818,150.31,150.28,6.37959102]
[1751630958398,4.94157973,150.31,150.28,6.37959102]
[1751630959093,4.94157973,150.31,150.26,6.6551311]
[1751630959293,4.94157973,150.31,150.28,6.37959102]
[1751630960115,4.94157973,150.31,150.28,13.03377811]
[1751630960303,4.94157973,150.32,150.29,6.37959102]
[1751630960892,17.97374563,150.32,150.27,6.37959102]
[1751630961098,4.94157973,150.31,150.27,6.37959102]
[1751630963007,4.94157973,150.31,150.27,13.03418477]
[1751630963190,13.0321659,150.32,150.28,6.37959102]
[1751630963394,17.97374563,150.32,150.28,6.37959102]
[1751630963699,4.94157973,150.31,150.28,6.37959102]
[1751630964813,13.0321659,150.32,150.28,6.37959102]
[1751630965016,17.97374563,150.32,150.28,6.37959102]
[1751630965224,4.94157973,150.31,150.28,6.37959102]
[1751630965401,13.0321659,150.32,150.28,6.37959102]
[1751630965593,17.97374563,150.32,150.28,6.37959102]
[1751630965793,4.94157973,150.31,150.28,6.37959102]
[1751630966215,13.0321659,150.32,150.28,6.37959102]
[1751630966720,17.98837039,150.32,150.27,6.65459375]
[1751630966898,13.0321659,150.32,150.28,6.37959102]
[1751630967317,17.98837039,150.32,150.27,6.65459375]
[1751630967499,13.0321659,150.32,150.28,6.37959102]
[1751630967895,17.98855983,150.32,150.28,6.37959102]
[1751630968189,13.0321659,150.32,150.28,6.37959102]
[1751630968715,17.98867473,150.32,150.28,6.37959102]
[1751630968889,6.65257488,150.32,150.28,6.37959102]
[1751630969404,11.60917636,150.32,150.28,6.37959102]
[1751630969924,11.60917636,150.32,150.28,4.08370696]
[1751630970414,4.95660148,150.32,150.28,4.08370696]
[1751630970618,11.60910649,150.32,150.28,4.08370696]
[1751630970818,15.69281345,150.32,150.28,4.08370696]
[1751630971023,10.73621197,150.32,150.28,4.08370696]
[1751630971408,15.69326079,150.32,150.28,4.08370696]
[1751630971711,10.73621197,150.32,150.28,4.08370696]
[1751630972225,15.69312074,150.32,150.28,4.08370696]
[1751630972405,4.95690877,150.31,150.28,4.08370696]
[1751630972820,10.73621197,150.32,150.28,4.08370696]
[1751630973008,15.69312074,150.32,150.28,4.08370696]
[1751630973206,4.95690877,150.31,150.28,4.08370696]
[1751630973614,10.73621197,150.32,150.28,4.08370696]
[1751630973808,15.69312074,150.32,150.28,4.08370696]
[1751630974001,4.95690877,150.31,150.28,4.08370696]
[1751630974323,4.95690877,150.31,150.27,10.73830071]
[1751630975529,11.61000609,150.31,150.27,4.08370696]
[1751630977523,11.61000609,150.31,150.26,6.6551311]
[1751630977826,11.61000609,150.31,150.27,4.08370696]
[1751630980431,6.65309732,150.31,150.27,4.08370696]
[1751630981926,6.65268615,150.32,150.28,4.08370696]
[1751630982111,11.60997772,150.32,150.28,4.08370696]
[1751630983435,11.60997772,150.32,150.27,6.65450035]
[1751630983613,11.60997772,150.32,150.28,4.08370696]
[1751630984528,15.69368468,150.32,150.28,4.08370696]
[1751630984730,10.73639311,150.32,150.28,4.08370696]
[1751630985211,10.73639311,150.32,150.27,4.08370696]
[1751630985212,15.69353996,150.32,150.27,4.08370696]
[1751630985416,4.95714685,150.31,150.27,4.08370696]
[1751630985833,4.95714685,150.31,150.25,13.53552734]
[1751630985834,9.04085381,150.31,150.25,13.53552734]
[1751630986034,9.04085381,150.31,150.26,4.08370696]
[1751630986238,4.08370696,150.3,150.26,4.08370696]
[1751630986922,6.65380264,150.29,150.26,4.08370696]
[1751630988045,6.65335994,150.3,150.26,4.08370696]
[1751630989045,6.65335994,150.3,150.27,4.08370696]
[1751630989245,11.61050679,150.3,150.27,4.08370696]
[1751630990448,4.95714685,150.3,150.27,4.08370696]
[1751630991139,4.95714685,150.3,150.26,4.08370696]
[1751630991140,15.69432552,150.3,150.26,4.08370696]
[1751630991337,6.65347171,150.3,150.27,4.08370696]
[1751630991521,4.95726479,150.3,150.27,4.08370696]
[1751630991846,4.95726479,150.3,150.28,4.08370696]
[1751630992853,4.95726479,150.3,150.29,4.08370696]
[1751630993538,4.95762753,150.32,150.29,4.08370696]
[1751630993734,4.95762753,150.31,150.29,4.08370696]
[1751630994058,9.04133449,150.32,150.28,10.73776902]
[1751630994233,4.95762753,150.31,150.28,10.73776902]
[1751630995251,4.95762753,150.32,150.28,10.73776902]
[1751630995456,4.95762753,150.31,150.28,10.73776902]
[1751630995624,4.95762753,150.32,150.28,10.73776902]
[1751630995824,4.95762753,150.31,150.28,10.73776902]
[1751630996026,4.95762753,150.32,150.29,4.08370696]
[1751630996240,4.95762753,150.31,150.29,4.08370696]
[1751630996453,4.95762753,150.32,150.29,4.08370696]
[1751630996647,4.95762753,150.31,150.28,6.65406206]
[1751630996826,4.95762753,150.32,150.29,4.08370696]
[1751630997027,4.95762753,150.31,150.29,4.08370696]
[1751630997235,4.95762753,150.32,150.29,4.08370696]
[1751630997436,4.95762753,150.31,150.29,4.08370696]
[1751630997752,4.95762753,150.32,150.29,4.08370696]
[1751630998056,4.95762753,150.31,150.29,4.08370696]
[1751630998241,4.95762753,150.32,150.29,4.08370696]
[1751630998439,4.95762753,150.31,150.29,4.08370696]
[1751630998645,4.95762753,150.32,150.3,4.08370696]
[1751630998957,179.05164319,150.34,150.31,4.08370696]
[1751630998958,4.95762753,150.33,150.31,4.08370696]
[1751630999155,4.95762753,150.33,150.32,4.08370696]
[1751631000460,146.4,150.34,150.32,10.73618168]
[1751631000660,146.4,150.34,150.33,4.08370696]
[1751631001029,0.2,150.38,150.33,4.08370696]
[1751631001235,4.95695342,150.37,150.36,4.08370696]
[1751631001429,5.15695342,150.38,150.36,4.08370696]
[1751631001667,5.15695342,150.38,150.37,4.08370696]
[1751631002171,0.2,150.38,150.35,6.65104678]
[1751631002325,0.2,150.38,150.37,4.08370696]
[1751631003752,0.2,150.38,150.37,6.37369734]
[1751631005934,0.2,150.38,150.35,6.65104678]
[1751631006264,0.2,150.38,150.36,6.37369734]
[1751631007565,0.2,150.38,150.36,13.02434036]
[1751631007874,0.2,150.38,150.37,6.37369734]
[1751631009347,0.2,150.38,150.37,13.02396002]
[1751631025889,0.2,150.38,150.37,4.07800177]
[1751631027076,0.2,150.38,150.37,10.72826445]
[1751631034071,0.2,150.38,150.37,44.32826445]
[1751631037293,0.2,150.38,150.37,70.32826445]
[1751631042104,0.2,150.38,150.37,88.97791331]
[1751631043587,1e-08,150.38,150.37,88.97791331]
[1751631043795,0.2,150.39,150.38,18.64964886]
[1751631043994,0.2,150.4,150.39,6.64937828]
[1751631044177,0.2,150.4,150.39,67.49938713]
[1751631044504,0.2,150.4,150.39,86.14903599]
[1751631048209,0.2,150.41,150.4,44.64964886]
[1751631048513,0.2,150.43,150.4,65.03965771]
[1751631048688,0.2,150.43,150.42,4.07800177]
[1751631050091,0.2,150.43,150.42,10.72605389]
[1751631051725,0.2,150.43,150.42,29.37570275]
[1751631059905,1e-08,150.43,150.42,29.37570275]
[1751631060106,0.2,150.45,150.43,18.64964886]
[1751631060323,0.2,150.45,150.44,37.65800177]
[1751631060735,0.2,150.45,150.44,44.30517007]
[1751631061905,0.2,150.45,150.44,62.95481893]
[1751631062304,0.2,150.47,150.45,18.64964886]
[1751631062528,0.2,150.47,150.46,37.65800177]
[1751631062713,0.2,150.47,150.46,51.16428649]
[1751631064606,0.2,150.47,150.46,95.81393535]
[1751631068237,0.2,150.47,150.46,73.08628472]
[1751631068424,0.2,150.47,150.46,77.16428649]
[1751631071439,0.2,150.47,150.46,47.08628472]
[1751631071624,0.2,150.47,150.46,51.16428649]
[1751631073512,0.2,150.47,150.46,10.93800177]
[1751631073738,0.2,150.47,150.46,6.86]
[1751631074410,0.2,150.47,150.46,17.58428649]
[1751631101561,0.2,150.47,150.46,6.86]
[1751631101858,0.2,150.47,150.41,6.64840039]
[1751631101859,18.57004479,150.47,150.41,6.64840039]
[1751631102056,4.07800177,150.44,150.4,13.50892338]
[1751631102245,14.49204302,150.47,150.4,13.50892338]
[1751631102246,4.07800177,150.42,150.4,6.86]
[1751631103768,6.37214956,150.42,150.4,6.86]
[1751631104470,6.37214956,150.43,150.4,6.86]
[1751631104655,13.01944153,150.44,150.4,6.86]
[1751631105156,6.37214956,150.43,150.4,6.86]
[1751631108044,6.64765312,150.43,150.4,6.86]
[1751631108367,13.01980268,150.43,150.4,6.86]
[1751631108752,6.37214956,150.43,150.4,6.86]
[1751631109361,6.37214956,150.44,150.4,19.88104412]
[1751631110750,13.01907298,150.45,150.41,6.37214956]
[1751631110968,6.37214956,150.45,150.41,6.37214956]
[1751631112056,13.01855957,150.46,150.42,6.37214956]
[1751631114569,160.89224496,150.47,150.42,13.02007626]
[1751631114781,167.26439452,150.47,150.43,6.37214956]
[1751631114967,160.61834956,150.47,150.43,6.37214956]
[1751631115572,160.61834956,150.47,150.43,13.01954244]
[1751631116873,167.26426568,150.47,150.43,13.01954244]
[1751631117174,167.26426568,150.47,150.43,6.37214956]
[1751631117370,6.37214956,150.45,150.41,13.02050402]
[1751631117573,6.37214956,150.45,150.4,19.88097212]
[1751631118570,160.89211612,150.47,150.4,19.88097212]
[1751631118876,13.01927367,150.45,150.4,19.88097212]
[1751631120165,6.37214956,150.44,150.4,19.88097212]
[1751631121067,6.37214956,150.45,150.4,19.88097212]
[1751631121263,6.37214956,150.45,150.41,13.02020246]
[1751631121465,154.2462,150.47,150.43,6.37214956]
[1751631121466,167.26436134,150.47,150.43,6.37214956]
[1751631121785,160.89221178,150.47,150.43,6.37214956]
[1751631121980,167.26436134,150.47,150.43,6.37214956]
[1751631125088,159.10864956,150.47,150.43,13.01955078]
[1751631125273,146.6,150.47,150.44,6.37214956]
[1751631125978,152.97214956,150.47,150.43,13.01955078]
[1751631127872,159.61805292,150.47,150.43,13.01955078]
[1751631128384,6.37214956,150.45,150.41,6.37214956]
[1751631129087,6.37214956,150.45,150.41,13.02064367]
[1751631134202,13.01892407,150.45,150.41,6.64849411]
[1751631135102,6.37214956,150.45,150.41,6.64849411]
[1751631136695,6.37214956,150.45,150.41,13.02064367]
[1751631139908,4.07652053,150.45,150.41,10.72501464]
[1751631146218,9.02353182,150.45,150.41,10.72501464]
[1751631147814,15.67032817,150.45,150.41,10.72501464]
[1751631147978,10.72331688,150.45,150.41,10.72501464]
[1751631148178,4.07652053,150.45,150.41,10.72501464]
[1751631148909,9.03459888,150.45,150.41,10.72501464]
[1751631149210,4.07652053,150.45,150.41,10.72501464]
[1751631150210,10.72345702,150.45,150.41,10.72501464]
[1751631151718,4.07652053,150.45,150.41,10.72501464]
[1751631153058,10.72329674,150.45,150.41,10.72501464]
[1751631153408,4.96062571,150.44,150.41,10.72501464]
[1751631153587,4.96062571,150.44,150.41,6.64849411]
[1751631153788,4.96062571,150.44,150.4,17.58526884]
[1751631154604,4.07652053,150.42,150.4,6.86]
[1751631154788,9.03714624,150.41,150.4,6.86]
[1751631155120,4.07652053,150.41,150.4,6.86]
[1751631155297,15.68564035,150.41,150.4,6.86]
[1751631155613,10.72501464,150.41,150.4,6.86]
[1751631155809,22.78372815,150.45,150.4,6.86]
[1751631155810,6.64819555,150.42,150.4,6.86]
[1751631156015,4.96062571,150.41,150.4,6.86]
[1751631157223,10.72471608,150.42,150.4,6.86]
[1751631157933,9.03306431,150.42,150.4,6.86]
[1751631158114,9.03306431,150.42,150.38,10.82627083]
[1751631158316,4.95654378,150.42,150.38,10.82627083]
[1751631158619,10.72429607,150.43,150.38,10.82627083]
[1751631159015,15.68034816,150.43,150.38,10.82627083]
[1751631159229,10.72429607,150.43,150.38,10.82627083]
[1751631159830,15.67992343,150.43,150.38,10.82627083]
[1751631160010,10.72429607,150.43,150.38,10.82627083]
[1751631160433,15.67964048,150.43,150.38,10.82627083]
[1751631160724,4.95534441,150.42,150.38,10.82627083]
[1751631161121,10.72429607,150.43,150.38,10.82627083]
[1751631161304,15.67964048,150.43,150.38,10.82627083]
[1751631161504,4.95534441,150.42,150.38,10.82627083]
[1751631161910,10.72429607,150.43,150.38,10.82627083]
[1751631162115,9.03186494,150.43,150.38,10.82627083]
[1751631162332,15.67961669,150.43,150.38,10.82627083]
[1751631162528,4.95534441,150.42,150.38,10.82627083]
[1751631162716,10.72427228,150.43,150.38,10.82627083]
[1751631163207,15.67961669,150.43,150.38,10.82627083]
[1751631163408,10.72427228,150.43,150.38,10.82627083]
[1751631164023,15.67643992,150.43,150.38,10.82627083]
[1751631164229,10.72427228,150.43,150.38,10.82627083]
[1751631164826,10.7246036,150.42,150.38,0.1]
[1751631165012,15.67628578,150.42,150.38,0.1]
[1751631165312,10.7246036,150.42,150.38,0.1]
[1751631165631,4.07652053,150.39,150.38,0.1]
[1751631168717,10.72580568,150.4,150.38,0.1]
[1751631171133,37.59888476,150.41,150.38,0.1]
[1751631171320,36.72522188,150.41,150.38,0.1]
[1751631172519,10.72475684,150.42,150.38,0.1]
[1751631172833,15.66588792,150.43,150.39,4.07652053]
[1751631173413,11.58936739,150.43,150.39,4.07652053]
[1751631173616,6.64776006,150.43,150.39,4.07652053]
[1751631174037,15.66548823,150.44,150.39,10.72581169]
[1751631174236,9.01812786,150.43,150.39,10.72581169]
[1751631174417,4.07652053,150.43,150.39,10.72581169]
[1751631175737,4.07652053,150.43,150.39,6.64929116]
[1751631175939,6.37118879,150.43,150.39,13.02047995]
[1751631178241,6.64736037,150.44,150.39,13.02047995]
[1751631178432,6.37118879,150.43,150.39,13.02047995]
[1751631178637,13.01854916,150.44,150.39,13.02047995]
[1751631181949,17.95963571,150.45,150.41,6.37118879]
[1751631182138,6.37118879,150.44,150.4,6.37118879]
[1751631183079,17.95963571,150.45,150.4,13.02007941]
[1751631183250,17.95963571,150.45,150.41,6.37118879]
[1751631183635,17.95963571,150.45,150.4,6.64889062]
[1751631183835,17.95963571,150.45,150.41,6.37118879]
[1751631184948,17.95963571,150.45,150.4,6.64889062]
[1751631185137,6.37118879,150.44,150.4,13.02007941]
[1751631185640,6.64683959,150.45,150.4,13.02007941]
[1751631185847,6.37118879,150.44,150.4,13.02007941]
[1751631187147,13.01845279,150.44,150.4,13.02007941]
[1751631190851,6.647264,150.44,150.4,13.02007941]
[1751631191029,13.01845279,150.44,150.4,13.02007941]
[1751631191953,6.37118879,150.44,150.4,13.02007941]
[1751631192545,11.58982352,150.45,150.4,13.02007941]
[1751631192850,6.37118879,150.44,150.4,13.02007941]
[1751631195752,4.07702579,150.44,150.4,10.72591641]
[1751631198154,9.01993064,150.45,150.41,4.07702579]
[1751631198658,15.6666708,150.45,150.41,4.07702579]
[1751631199631,15.6666708,150.45,150.41,10.72539731]
[1751631204164,9.01993064,150.45,150.41,10.72539731]
[1751631205761,9.01721643,150.45,150.41,10.72539731]
[1751631208457,4.94019064,150.45,150.41,10.72539731]
[1751631209056,4.94019064,150.45,150.43,4.07702579]
[1751631209261,146.6,150.47,150.44,6.6471683]
[1751631211665,146.6,150.47,150.45,4.07702579]
[1751631212560,0.2,150.47,150.45,4.07702579]
[1751631214453,0.2,150.47,150.45,10.72363111]
[1751631215762,0.2,150.47,150.46,4.07702579]
[1751631217964,0.2,150.47,150.46,10.72331051]
[1751631223279,0.2,150.47,150.43,23.26663564]
[1751631223479,0.2,150.47,150.46,4.07702579]
[1751631224375,0.2,150.47,150.43,40.18761018]
[1751631224585,0.2,150.47,150.44,4.07702579]
[1751631224958,0.2,150.47,150.45,4.07702579]
[1751631227792,0.2,150.47,150.43,6.64761018]
[1751631227983,0.2,150.47,150.45,4.07702579]
[1751631232186,0.2,150.47,150.44,6.64715706]
[1751631232489,0.2,150.47,150.45,4.07702579]
[1751631232799,10.92287969,150.47,150.43,4.07702579]
[1751631233572,0.2,150.47,150.44,4.07702579]
[1751631234671,6.84586924,150.47,150.44,4.07702579]
[1751631244514,6.84586924,150.47,150.43,10.72463502]
[1751631245115,10.92289503,150.47,150.43,10.72463502]
[1751631246197,10.92289503,150.47,150.43,4.07702579]
[1751631248205,6.84586924,150.47,150.43,10.72452261]
[1751631248898,0.2,150.47,150.43,10.72452261]
[1751631249100,0.2,150.47,150.44,4.07702579]
[1751631251896,0.2,150.47,150.42,6.64805212]
[1751631252098,6.84594574,150.47,150.44,4.07702579]
[1751631252823,6.84594574,150.47,150.43,4.07702579]
[1751631253303,11.79856391,150.47,150.43,4.07702579]
[1751631254721,11.79856391,150.47,150.43,10.72457843]
[1751631255224,11.80040881,150.47,150.43,10.72457843]
[1751631257824,11.80053973,150.47,150.43,10.72457843]
[1751631259227,5.15459399,150.47,150.43,10.72457843]
[1751631259411,5.15459399,150.47,150.44,4.07702579]
[1751631260726,0.2,150.47,150.44,4.07702579]
[1751631261528,6.84584591,150.47,150.44,4.07702579]
[1751631262025,6.84584591,150.47,150.43,6.64755264]
[1751631262327,11.80009507,150.47,150.44,4.07702579]
[1751631263529,11.80009507,150.47,150.43,4.07702579]
[1751631264533,5.15424916,150.47,150.43,4.07702579]
[1751631266228,5.15424916,150.47,150.44,4.07702579]
[1751631267636,5.15424916,150.47,150.41,23.2697294]
[1751631267829,5.15424916,150.47,150.44,4.07702579]
[1751631268540,0.2,150.47,150.44,4.07702579]
[1751631269248,5.15799037,150.47,150.44,10.7241355]
[1751631270739,0.2,150.47,150.44,10.7241355]
[1751631270939,5.15812673,150.47,150.44,10.7241355]
[1751631272540,5.15812673,150.47,150.45,4.07702579]
[1751631272746,0.2,150.47,150.45,4.07702579]
[1751631272920,5.15812673,150.47,150.45,4.07702579]
[1751631273113,0.2,150.47,150.45,4.07702579]
[1751631273314,5.15812673,150.47,150.45,4.07702579]
[1751631273513,0.2,150.47,150.45,4.07702579]
[1751631277826,0.2,150.47,150.45,10.7237275]
[1751631278743,0.2,150.47,150.45,6.64670171]
[1751631281115,0.2,150.47,150.44,10.72399066]
[1751631281545,0.2,150.47,150.45,4.07702579]
[1751631282024,0.2,150.47,150.44,6.64696487]
[1751631282025,0.2,150.47,150.44,10.72399066]
[1751631293451,0.2,150.47,150.45,4.07702579]
[1751631295355,0.2,150.47,150.45,10.72367594]
[1751631301858,0.2,150.47,150.43,6.64761018]
[1751631302157,0.2,150.47,150.44,4.07702579]
[1751631302361,0.2,150.47,150.43,6.64761018]
[1751631302362,0.2,150.47,150.45,4.07702579]
[1751631302557,0.2,150.47,150.46,4.07702579]
[1751631302859,0.2,150.47,150.44,4.07702579]
[1751631304250,0.2,150.47,150.45,6.64672648]
[1751631304448,0.2,150.47,150.45,10.72375227]
[1751631309469,0.2,150.47,150.46,4.07702579]
[1751631311369,0.2,150.47,150.46,10.72331051]
[1751631323689,0.2,150.52,150.47,44.64964886]
[1751631323972,0.2,150.52,150.51,4.07702579]
[1751631324365,0.2,150.52,150.51,63.57702579]
[1751631325679,0.2,150.52,150.51,70.22110259]
[1751631327382,0.2,150.52,150.51,44.22110259]
[1751631331084,0.2,150.52,150.51,40.1440768]
[1751631331270,0.2,150.52,150.51,44.22110259]
[1751631336066,0.2,150.52,150.51,37.57702579]
[1751631336275,0.2,150.52,150.51,33.5]
[1751631336595,0.2,150.52,150.49,6.84]
[1751631336596,0.2,150.52,150.49,51.04186606]
[1751631336963,4.27702579,150.52,150.49,6.84]
[1751631337164,4.27702579,150.52,150.49,40.32]
[1751631337396,4.27702579,150.52,150.49,46.96495348]
[1751631338783,0.2,150.52,150.49,51.04197927]
[1751631340474,0.2,150.52,150.51,4.07702579]
[1751631340788,0.2,150.52,150.51,37.55702579]
[1751631341678,0.2,150.52,150.51,44.20110259]
[1751631350696,0.2,150.52,150.49,46.96476954]
[1751631350898,10.9207503,150.52,150.49,6.84]
[1751631351078,14.96892451,150.52,150.49,6.84]
[1751631351282,4.07702579,150.5,150.49,6.84]
[1751631351472,4.07702579,150.5,150.45,6.64654551]
[1751631351679,4.07702579,150.49,150.45,10.7235713]
[1751631351884,4.07702579,150.49,150.45,44.2035713]
[1751631352282,4.07702579,150.49,150.45,10.7235713]
[1751631352476,4.07702579,150.49,150.45,6.64654551]
[1751631352681,4.07702579,150.48,150.45,40.12654551]
[1751631353205,4.07702579,150.49,150.45,44.2035713]
[1751631353797,6.36623488,150.49,150.45,46.49278039]
[1751631355377,6.36623488,150.48,150.44,13.01326983]
[1751631355601,6.36623488,150.47,150.43,6.82]
[1751631355786,6.36623488,150.48,150.43,53.31375945]
[1751631355982,6.36623488,150.49,150.45,6.36623488]
[1751631356793,13.01137821,150.49,150.44,13.0132785]
[1751631360295,6.36623488,150.49,150.44,13.0132785]
[1751631360506,6.36623488,150.5,150.46,6.36623488]
[1751631360883,153.04410587,150.51,150.44,6.64704362]
[1751631361190,6.36623488,150.46,150.43,6.82]
[1751631361387,6.36623488,150.45,150.43,6.82]
[1751631362099,6.36623488,150.44,150.43,6.82]
[1751631362787,14.8000042,150.46,150.43,6.82]
[1751631362989,6.36623488,150.44,150.43,6.82]
[1751631363191,6.64761018,150.43,150.4,0.1]
[1751631363387,6.36623488,150.42,150.4,0.1]
[1751631364110,6.36623488,150.43,150.4,0.1]
[1751631365711,13.01384882,150.43,150.4,0.1]
[1751631366412,6.36623488,150.42,150.4,0.1]
[1751631366704,6.36623488,150.41,150.4,0.1]
[1751631367094,6.36623488,150.42,150.4,0.1]
[1751631367292,13.0134214,150.44,150.4,6.46623488]
[1751631367900,13.0134214,150.44,150.4,0.1]
[1751631371418,6.36623488,150.44,150.4,6.74892225]
[1751631371594,6.36623488,150.44,150.4,13.11515713]
[1751631376418,13.0134536,150.44,150.4,13.11515713]
[1751631378803,6.36623488,150.44,150.4,13.11515713]
[1751631380229,13.01346739,150.44,150.4,6.46623488]
[1751631381234,13.01346739,150.44,150.4,0.1]
[1751631381432,13.01346739,150.44,150.4,6.46623488]
[1751631381937,10.72450065,150.44,150.4,4.17726814]
[1751631382332,10.72450065,150.44,150.4,0.1]
[1751631382515,4.07726814,150.43,150.4,0.1]
[1751631385422,10.72450065,150.44,150.4,0.1]
[1751631389225,4.07726814,150.43,150.4,0.1]
[1751631390204,4.07726814,150.42,150.4,0.1]
[1751631390405,4.07726814,150.41,150.4,0.1]
[1751631390920,30.07726814,150.41,150.4,0.1]
[1751631391119,36.72576225,150.41,150.4,0.1]
[1751631391912,55.37541111,150.41,150.4,0.1]
[1751631392118,60.29638001,150.41,150.4,0.1]
[1751631392320,66.68828001,150.41,150.4,0.1]
[1751631393837,68.98767006,150.41,150.4,0.1]
[1751631395933,62.61101187,150.41,150.4,0.1]
[1751631396119,37.56946301,150.41,150.4,0.1]
[1751631396320,37.29762709,150.41,150.4,0.1]
[1751631396641,39.0251523,150.41,150.4,0.1]
[1751631396940,13.0251523,150.41,150.4,0.1]